bitfinex/quotes_ETHUSD_20240603
["timestamp","ask_amount","ask_price","bid_price","bid_amount"]
[1717392160427,2.61628,3822.3,3821.9,4.0392]
[1717392160602,0.547,3822.0,3821.9,4.0392]
[1717392160802,2.61628,3822.3,3821.9,4.0392]
[1717392161021,0.547,3822.1,3821.9,4.0392]
[1717392161679,2.46890795,3822.3,3821.9,4.0392]
[1717392161879,0.547,3822.0,3821.9,4.0392]
[1717392164234,2.61653,3821.9,3821.1,4.3405]
[1717392164413,0.547,3821.7,3821.1,4.3405]
[1717392164734,0.547,3821.7,3821.2,0.12305189]
[1717392165851,2.61653,3821.9,3821.2,0.12305189]
[1717392165994,0.547,3821.6,3821.2,0.12305189]
[1717392168030,0.547,3821.4,3821.2,0.12305189]
[1717392169052,0.547,3821.6,3821.2,0.12305189]
[1717392169933,0.547,3821.5,3821.2,0.12305189]
[1717392170137,0.547,3821.7,3821.2,0.12305189]
[1717392170902,2.61624,3822.3,3821.3,4.3501]
[1717392171070,0.547,3822.1,3821.3,4.3501]
[1717392171243,2.61624,3822.3,3821.4,0.1231681]
[1717392171244,0.547,3821.9,3821.4,0.1231681]
[1717392172370,0.547,3821.7,3821.4,0.1231681]
[1717392172544,0.547,3821.5,3821.4,0.1231681]
[1717392172759,0.547,3821.5,3821.3,4.3501]
[1717392173698,2.61647,3822.0,3821.3,4.3501]
[1717392173925,3.16347,3822.0,3821.3,4.3501]
[1717392174192,3.16347,3822.0,3821.4,0.12288086]
[1717392174864,2.61647,3822.0,3821.4,0.12288086]
[1717392175041,0.547,3821.9,3821.4,0.12288086]
[1717392175249,2.61647,3822.0,3821.4,0.12288086]
[1717392175500,0.547,3821.9,3821.4,0.12288086]
[1717392177239,0.547,3821.7,3821.4,0.12288086]
[1717392183636,2.61647,3822.0,3821.4,0.12288086]
[1717392184139,0.547,3821.8,3821.4,0.12288086]
[1717392187441,2.61647,3822.0,3821.5,3.9983]
[1717392187861,2.61647,3822.0,3821.6,0.12283018]
[1717392189719,0.547,3822.2,3821.6,0.12283018]
[1717392189919,0.547,3822.2,3821.7,3.9592]
[1717392190142,0.547,3822.2,3821.8,0.1227826]
[1717392190418,0.547,3822.2,3821.7,3.9592]
[1717392190763,0.547,3822.2,3821.8,0.1227826]
[1717392190969,0.547,3822.2,3821.7,3.9592]
[1717392191268,0.547,3822.2,3821.8,0.1227826]
[1717392191558,2.61591,3822.8,3821.9,6.58946]
[1717392191800,0.547,3823.0,3822.0,4.09573502]
[1717392192079,0.547,3822.9,3822.0,4.09573502]
[1717392192235,0.547,3822.8,3822.1,2.61635]
[1717392192435,0.547,3822.8,3822.2,4.2788]
[1717392192699,0.547,3822.8,3822.2,4.40132365]
[1717392193329,2.61563,3823.2,3822.2,4.40132365]
[1717392193575,0.547,3822.9,3822.2,4.40132365]
[1717392193749,0.547,3822.7,3822.2,4.40132365]
[1717392193952,0.547,3822.5,3822.2,4.40132365]
[1717392194297,0.547,3822.3,3822.2,0.12252365]
[1717392194643,0.547,3822.3,3821.8,4.1813]
[1717392194840,0.547,3822.3,3822.2,0.1222239]
[1717392195068,0.547,3822.3,3821.8,4.1813]
[1717392195384,0.547,3822.5,3821.8,4.1813]
[1717392195678,0.547,3822.5,3821.9,0.12238486]
[1717392200116,0.547,3822.7,3821.9,0.12238486]
[1717392200809,2.61574,3823.0,3821.9,0.12238486]
[1717392201018,0.547,3822.8,3821.9,0.12238486]
[1717392201203,2.61574,3823.0,3821.9,0.12238486]
[1717392201398,0.547,3822.7,3821.9,0.12238486]
[1717392202083,0.547,3822.8,3821.9,0.12238486]
[1717392202417,0.547,3822.7,3821.9,0.12238486]
[1717392205602,0.547,3822.9,3821.9,0.12238486]
[1717392207131,0.941992,3822.7,3821.9,0.12238486]
[1717392208366,0.941992,3822.7,3822.0,35.0]
[1717392208575,0.941992,3822.7,3822.1,0.12211175]
[1717392209160,0.394992,3822.7,3822.1,0.12211175]
[1717392211736,0.394992,3822.7,3821.8,4.1813]
[1717392211942,0.394992,3822.7,3821.9,0.12214697]
[1717392212972,0.394992,3822.7,3821.9,0.66914697]
[1717392213741,0.394992,3822.7,3822.0,5.2324]
[1717392213942,0.941992,3822.7,3822.1,0.12209629]
[1717392214387,0.394992,3822.7,3822.5,4.1187]
[1717392214586,0.394992,3822.7,3822.6,0.12197737]
[1717392215387,0.394992,3822.7,3822.6,0.66897737]
[1717392215588,0.394992,3822.7,3822.6,0.12197737]
[1717392218599,0.394992,3822.7,3822.6,4.75587737]
[1717392218805,0.394992,3822.7,3822.6,5.30587737]
[1717392219562,0.394992,3822.7,3822.6,4.75887737]
[1717392219803,0.394992,3822.7,3822.6,5.30587737]
[1717392220001,0.394992,3822.7,3822.6,4.75587737]
[1717392220161,0.394992,3822.7,3822.6,4.20887737]
[1717392224486,0.394992,3822.7,3822.6,7.20887737]
[1717392229382,0.394992,3822.7,3822.6,3.12197737]
[1717392229981,0.394992,3822.7,3822.6,0.12197737]
[1717392230673,0.394992,3822.7,3822.0,9.83494539]
[1717392230883,0.394992,3822.7,3822.6,0.11859567]
[1717392231424,0.394992,3822.7,3822.2,0.547]
[1717392231595,0.394992,3822.7,3822.6,0.11859567]
[1717392231813,0.394992,3822.7,3822.3,5.2326]
[1717392231995,0.394992,3822.7,3822.6,0.11859567]
[1717392232201,0.394992,3822.7,3822.3,5.2326]
[1717392232394,0.394992,3822.7,3822.6,0.11859567]
[1717392232595,0.394992,3822.7,3822.3,5.2326]
[1717392232846,0.394992,3822.7,3822.6,0.11859567]
[1717392233011,0.394992,3822.7,3822.3,5.2326]
[1717392233212,0.394992,3822.7,3822.4,0.11864323]
[1717392238453,4.444792,3822.7,3822.4,0.11864323]
[1717392240429,0.547,3822.5,3822.4,0.11864323]
[1717392241633,4.991792,3822.7,3822.4,0.11864323]
[1717392242239,0.547,3822.5,3822.4,0.11864323]
[1717392243023,2.61602,3822.6,3822.4,0.11864323]
[1717392243843,0.547,3822.5,3822.4,0.11864323]
[1717392244044,4.9295,3822.5,3822.4,0.11864323]
[1717392245267,5.7235512,3822.5,3822.4,0.11864323]
[1717392246269,0.547,3822.5,3822.4,0.11864323]
[1717392246476,2.61602,3822.6,3822.3,5.2326]
[1717392247304,2.61602,3822.6,3822.4,0.11909112]
[1717392247817,0.394992,3822.7,3822.4,0.11909112]
[1717392250716,4.563292,3822.7,3822.4,0.11909112]
[1717392250922,0.547,3822.6,3822.4,0.11909112]
[1717392252034,2.61608,3822.5,3822.4,0.11909112]
[1717392252328,2.61608,3822.5,3822.3,5.2326]
[1717392252484,0.547,3822.4,3822.3,5.2326]
[1717392252685,4.8551,3822.4,3822.3,5.2326]
[1717392255123,3.9826,3822.4,3822.3,5.2326]
[1717392261894,2.61608,3822.5,3822.3,5.2326]
[1717392262610,4.6873,3822.4,3822.3,5.2326]
[1717392268053,0.394992,3822.7,3822.3,5.2326]
[1717392268209,0.394992,3822.7,3822.4,0.11932595]
[1717392268604,0.547,3822.6,3822.4,0.11932595]
[1717392269336,0.394992,3822.7,3822.4,0.11932595]
[1717392274414,0.547,3822.6,3822.4,0.11932595]
[1717392274615,0.547,3822.6,3822.3,5.2326]
[1717392278425,0.547,3822.4,3822.3,5.2326]
[1717392279754,2.61608,3822.5,3822.3,5.2326]
[1717392280940,2.61608,3822.5,3822.3,9.1917]
[1717392281135,0.394992,3822.7,3822.3,9.1917]
[1717392281337,0.394992,3822.7,3822.4,0.11911276]
[1717392287937,0.394992,3822.7,3822.5,5.2322]
[1717392288250,0.394992,3822.7,3822.6,0.11899414]
[1717392289080,0.394992,3822.7,3822.6,4.37649414]
[1717392298161,0.394992,3822.7,3822.6,4.92349414]
[1717392298892,0.394992,3822.7,3822.6,4.37649414]
[1717392303265,0.394992,3822.7,3822.6,4.92349414]
[1717392304968,0.394992,3822.7,3822.6,4.37649414]
[1717392305768,0.394992,3822.7,3822.6,9.60849414]
[1717392307985,0.394992,3822.7,3822.6,44.60849414]
[1717392310084,0.394992,3822.7,3822.6,45.15549414]
[1717392312117,0.394992,3822.7,3822.6,5.35099414]
[1717392316817,4.447192,3822.7,3822.6,5.35099414]
[1717392319261,0.394992,3822.7,3822.6,5.35099414]
[1717392320532,0.394992,3822.7,3822.6,9.37999414]
[1717392320731,0.394992,3822.7,3822.6,5.35099414]
[1717392322405,0.394992,3822.7,3822.6,9.42859414]
[1717392326059,0.394992,3822.7,3822.6,9.97859414]
[1717392328155,0.394992,3822.7,3822.6,10.52559414]
[1717392330026,0.394992,3822.7,3822.6,13.52559414]
[1717392331824,0.394992,3822.7,3822.6,12.97859414]
[1717392332244,0.394992,3822.7,3822.6,13.52559414]
[1717392334865,4.2502,3824.2,3822.7,4.0524]
[1717392335066,4.0868,3824.5,3823.5,0.547]
[1717392335370,4.0868,3824.5,3823.6,0.11829304]
[1717392335730,4.0868,3824.5,3823.7,5.2305]
[1717392335931,4.0868,3824.5,3823.8,0.11809419]
[1717392341182,0.547,3824.4,3823.8,0.11809419]
[1717392343857,4.0868,3824.5,3823.8,0.11809419]
[1717392344061,4.6338,3824.5,3823.8,0.11809419]
[1717392349183,0.547,3824.3,3823.8,0.11809419]
[1717392349392,3.9626,3824.2,3823.7,5.2305]
[1717392349578,0.547,3824.1,3823.9,0.11718326]
[1717392349779,0.547,3824.1,3823.7,5.2305]
[1717392350092,0.547,3824.1,3823.8,0.11720703]
[1717392350609,3.9626,3824.2,3823.7,5.2305]
[1717392351111,3.9626,3824.2,3823.8,0.11720703]
[1717392351494,3.9626,3824.2,3823.7,5.2305]
[1717392351889,3.9255,3824.0,3823.8,0.11720703]
[1717392352089,0.547,3823.9,3823.8,0.11720703]
[1717392352293,0.547,3823.9,3823.7,5.2305]
[1717392352697,0.547,3823.9,3823.8,0.11720703]
[1717392353017,0.547,3823.9,3823.7,5.2305]
[1717392353492,3.9255,3824.0,3823.8,0.11720703]
[1717392353678,4.4725,3824.0,3823.8,0.11720703]
[1717392353879,3.9255,3824.0,3823.7,5.2305]
[1717392354234,4.4725,3824.0,3823.8,0.11720703]
[1717392354696,4.4725,3824.0,3823.7,5.2305]
[1717392355015,4.4725,3824.0,3823.8,0.11720703]
[1717392355551,3.9255,3824.0,3823.7,5.2305]
[1717392355681,4.4725,3824.0,3823.7,5.2305]
[1717392355883,4.4725,3824.0,3823.8,0.11720703]
[1717392356204,4.4725,3824.0,3823.7,5.2305]
[1717392356626,4.4725,3824.0,3823.8,0.11720703]
[1717392356986,4.4725,3824.0,3823.7,5.2305]
[1717392357214,4.4725,3824.0,3823.8,0.11720703]
[1717392357587,4.4725,3824.0,3823.7,5.2305]
[1717392358128,4.4725,3824.0,3823.8,0.11720703]
[1717392358503,4.4725,3824.0,3823.7,5.2305]
[1717392358826,4.4725,3824.0,3823.8,0.11720703]
[1717392359542,4.4725,3824.0,3823.7,5.2305]
[1717392359824,4.4725,3824.0,3823.8,0.11720703]
[1717392360321,4.4725,3824.0,3823.7,5.2305]
[1717392360730,4.4725,3824.0,3823.8,0.11720703]
[1717392361104,4.4725,3824.0,3823.7,5.2305]
[1717392361427,4.4725,3824.0,3823.8,0.11720703]
[1717392361884,0.547,3824.0,3823.7,5.2305]
[1717392362224,0.547,3824.0,3823.8,0.11717924]
[1717392362585,0.547,3824.0,3823.7,5.2305]
[1717392362781,0.547,3824.0,3823.8,0.11717924]
[1717392362999,0.547,3824.0,3823.7,5.2305]
[1717392363405,0.547,3824.0,3823.8,0.11717924]
[1717392363799,0.547,3824.0,3823.7,5.2305]
[1717392364311,0.547,3824.0,3823.8,0.11719777]
[1717392364736,0.547,3824.0,3823.7,5.2305]
[1717392365097,0.547,3824.0,3823.8,0.11719777]
[1717392365498,0.547,3824.0,3823.7,5.2305]
[1717392365810,2.61499,3824.1,3823.8,0.11719777]
[1717392366130,3.0,3825.4,3823.8,0.11719777]
[1717392366131,6.65044,3824.5,3823.8,0.11719777]
[1717392366296,2.61474,3824.5,3823.7,5.7775]
[1717392366498,2.61474,3824.5,3823.9,0.117174]
[1717392366695,2.61474,3824.5,3823.8,0.11719777]
[1717392366946,2.61474,3824.5,3823.9,0.117174]
[1717392367100,2.61474,3824.5,3823.7,5.2305]
[1717392367612,2.61474,3824.5,3823.8,0.11706194]
[1717392368808,2.61474,3824.5,3823.9,5.2303]
[1717392369350,2.61474,3824.5,3824.0,0.11701441]
[1717392369609,2.61474,3824.5,3823.9,4.95232241]
[1717392369767,2.61474,3824.5,3824.1,0.11689494]
[1717392370067,2.61474,3824.5,3823.9,4.95232241]
[1717392370221,2.61474,3824.5,3824.2,0.1129707]
[1717392370422,2.61474,3824.5,3823.9,4.95232241]
[1717392370647,2.61474,3824.5,3824.3,0.11294694]
[1717392370960,2.61474,3824.5,3824.4,0.11292318]
[1717392371543,2.61474,3824.5,3824.0,3.9354]
[1717392371737,2.61474,3824.5,3824.1,0.11299446]
[1717392372117,0.547,3824.6,3824.1,0.11299446]
[1717392374369,0.547,3824.4,3824.1,0.11299446]
[1717392374674,0.547,3824.4,3823.9,4.95232241]
[1717392374866,0.547,3824.4,3824.2,0.1129707]
[1717392375052,0.547,3824.4,3823.9,4.95232241]
[1717392375251,0.547,3824.4,3824.3,0.11294694]
[1717392375460,0.547,3824.4,3823.9,4.95232241]
[1717392375943,2.61447,3824.9,3823.9,4.95232241]
[1717392375944,4.6522,3824.2,3823.9,4.95232241]
[1717392376152,0.547,3824.0,3823.9,4.95232241]
[1717392377071,6.72017,3824.2,3823.9,4.95232241]
[1717392377383,0.547,3824.0,3823.9,5.0653644]
[1717392387621,4.5415,3824.0,3823.9,5.0653644]
[1717392387827,5.257147,3824.0,3823.9,5.0653644]
[1717392388120,5.257147,3824.0,3823.9,4.95232241]
[1717392388522,5.257147,3824.0,3823.9,5.06558666]
[1717392395977,0.715647,3824.0,3823.9,5.06558666]
[1717392396295,0.547,3824.0,3823.9,5.06558666]
[1717392396663,4.3983,3824.0,3823.9,5.06558666]
[1717392396864,7.3983,3824.0,3823.9,5.06558666]
[1717392403600,7.3983,3824.0,3823.9,4.95232241]
[1717392403803,7.3983,3824.0,3823.9,5.06581826]
[1717392403976,8.661125,3824.0,3823.9,5.06581826]
[1717392408509,8.661125,3824.0,3823.9,0.10971293]
[1717392408706,8.114125,3824.0,3823.9,0.10971293]
[1717392408910,8.661125,3824.0,3822.8,4.0971]
[1717392409106,0.547,3823.1,3822.8,4.0971]
[1717392409309,0.547,3823.1,3822.9,0.11016989]
[1717392410678,0.547,3823.1,3822.8,4.0971]
[1717392412150,0.547,3823.1,3822.1,7.28]
[1717392412277,0.547,3822.9,3822.6,3.9693]
[1717392412692,0.547,3822.9,3822.7,0.11030393]
[1717392421253,3.479111,3822.9,3822.4,4.1862]
[1717392421399,0.547,3822.6,3822.4,4.1862]
[1717392422239,0.547,3822.6,3822.1,7.28]
[1717392422531,0.547,3822.6,3822.1,11.3553]
[1717392423133,2.61585,3822.9,3822.1,11.3553]
[1717392423333,0.547,3822.7,3822.1,11.3553]
[1717392424933,0.547,3822.7,3822.1,4.0753]
[1717392425143,0.547,3822.7,3822.2,0.11046608]
[1717392425624,2.61585,3822.9,3822.2,0.11046608]
[1717392425805,0.547,3822.7,3822.2,0.11046608]
[1717392427314,0.547,3822.5,3822.2,0.11046608]
[1717392430758,0.547,3822.7,3822.2,0.11046608]
[1717392433624,0.547,3822.7,3822.3,5.2322]
[1717392433824,0.547,3822.7,3822.4,0.11044941]
[1717392437241,0.547,3822.5,3822.4,0.11044941]
[1717392437643,0.547,3822.5,3822.3,5.2322]
[1717392439360,2.61602,3822.6,3822.3,5.2322]
[1717392439791,2.61602,3822.6,3822.4,0.11044941]
[1717392439966,0.547,3822.5,3822.4,0.11044941]
[1717392440168,0.547,3822.5,3822.3,5.2322]
[1717392440667,0.547,3822.5,3822.4,0.11044941]
[1717392441055,0.547,3822.5,3822.3,5.2322]
[1717392441454,0.547,3822.5,3822.4,0.11044941]
[1717392442678,0.547,3822.5,3822.3,5.2322]
[1717392442968,2.61602,3822.6,3822.4,0.11044941]
[1717392445371,4.008,3823.0,3822.4,0.11044941]
[1717392445372,0.547,3822.8,3822.4,0.11044941]
[1717392451181,0.547,3822.6,3822.4,0.11044941]
[1717392452780,2.61578,3823.0,3822.4,0.11044941]
[1717392453080,0.547,3822.6,3822.4,0.11044941]
[1717392457301,0.547,3822.7,3822.4,0.11044941]
[1717392460361,2.61591,3822.8,3822.4,0.11044941]
[1717392460608,0.547,3822.6,3822.4,0.11044941]
[1717392462099,2.61564,3823.2,3822.4,0.11044941]
[1717392462289,0.547,3823.0,3822.5,4.1796]
[1717392462465,2.61564,3823.2,3822.5,4.29001327]
[1717392462466,0.547,3822.8,3822.5,4.29001327]
[1717392465607,2.61564,3823.2,3822.5,4.29001327]
[1717392465806,0.547,3822.8,3822.5,4.29001327]
[1717392468018,2.61564,3823.2,3822.5,4.29001327]
[1717392468325,0.547,3823.0,3822.5,4.29001327]
[1717392469723,2.61564,3823.2,3822.5,4.29001327]
[1717392471896,0.547,3823.3,3822.5,4.29001327]
[1717392472489,0.547,3823.4,3822.5,4.29001327]
[1717392473995,0.547,3823.4,3822.6,5.232]
[1717392474192,0.547,3823.4,3822.6,5.34222889]
[1717392474835,2.61535,3823.6,3822.7,4.2459]
[1717392475127,0.547,3823.4,3822.8,5.34198133]
[1717392476415,2.61535,3823.6,3823.0,4.4063]
[1717392476600,3.16235,3823.6,3823.0,4.4063]
[1717392476801,3.16235,3823.6,3823.1,0.11011]
[1717392477498,0.547,3823.6,3823.1,0.11011]
[1717392478141,0.547,3823.4,3823.1,0.11011]
[1717392478830,0.547,3823.2,3823.1,0.11011]
[1717392479197,0.547,3823.2,3822.8,5.2318]
[1717392479394,0.547,3823.2,3823.1,0.11011]
[1717392479591,0.547,3823.2,3822.8,5.2318]
[1717392479836,0.547,3823.2,3823.1,0.11011]
[1717392480036,0.547,3823.2,3822.8,5.2318]
[1717392480248,0.547,3823.2,3823.1,0.11011]
[1717392481035,0.547,3823.2,3823.1,0.10966628]
[1717392481407,0.547,3823.2,3822.8,5.2318]
[1717392481615,0.547,3822.9,3822.8,5.2318]
[1717392484530,1.01737,3822.9,3822.8,5.2318]
[1717392484733,0.547,3822.9,3822.8,5.2318]
[1717392485643,2.61578,3823.0,3822.8,5.2318]
[1717392485948,0.547,3822.9,3822.8,5.2318]
[1717392486596,0.547,3823.3,3822.9,4.1138]
[1717392487540,2.6155,3823.4,3822.9,4.1138]
[1717392487541,0.547,3823.2,3822.9,4.1138]
[1717392488726,0.547,3823.2,3822.8,5.2318]
[1717392488972,2.6155,3823.4,3822.8,5.2318]
[1717392488973,0.547,3823.0,3822.8,5.2318]
[1717392489932,2.6155,3823.4,3822.8,5.2318]
[1717392490132,0.547,3823.0,3822.8,5.2318]
[1717392491365,2.61574,3823.0,3822.8,5.2318]
[1717392491571,0.547,3822.9,3822.8,5.2318]
[1717392492341,2.61574,3823.0,3822.8,5.2318]
[1717392492671,3.16274,3823.0,3822.8,5.2318]
[1717392493258,2.61574,3823.0,3822.8,5.2318]
[1717392493462,3.16274,3823.0,3822.8,5.2318]
[1717392493929,3.16274,3823.0,3822.9,0.10993312]
[1717392494134,2.61574,3823.0,3822.9,0.10993312]
[1717392494601,2.877314,3823.0,3822.9,0.10993312]
[1717392494903,2.877314,3823.0,3822.8,5.2318]
[1717392495049,3.424314,3823.0,3822.8,5.2318]
[1717392495981,0.547,3822.9,3822.8,5.2318]
[1717392497039,2.877314,3823.0,3822.8,5.2318]
[1717392497387,0.547,3822.9,3822.8,5.2318]
[1717392498035,2.61574,3823.0,3822.8,5.2318]
[1717392498236,0.547,3822.9,3822.8,5.2318]
[1717392499088,0.547,3822.9,3822.8,5.33803213]
[1717392502525,0.863274,3822.9,3822.8,5.33803213]
[1717392502845,4.935874,3822.9,3822.8,5.33803213]
[1717392504149,4.388874,3822.9,3822.8,5.33803213]
[1717392504450,4.935874,3822.9,3822.8,5.33803213]
[1717392508317,5.485874,3822.9,3822.8,5.33803213]
[1717392513023,5.7729354,3822.9,3822.8,5.33803213]
[1717392519579,8.7729354,3822.9,3822.8,5.33803213]
[1717392524803,8.2259354,3822.9,3822.8,5.33803213]
[1717392525005,8.7729354,3822.9,3822.8,5.33803213]
[1717392526330,8.2259354,3822.9,3822.8,5.33803213]
[1717392526755,8.7729354,3822.9,3822.8,5.33803213]
[1717392532696,8.2259354,3822.9,3822.8,5.33803213]
[1717392532896,8.7729354,3822.9,3822.8,5.33803213]
[1717392533197,8.4401614,3822.9,3822.8,5.33803213]
[1717392536415,4.3571614,3822.9,3822.8,5.33803213]
[1717392537109,3.547,3822.9,3822.8,5.33803213]
[1717392537997,3.0,3822.9,3822.8,5.33803213]
[1717392538167,2.61574,3823.0,3822.9,4.0476]
[1717392538388,3.16274,3823.0,3822.9,4.15444902]
[1717392539093,2.61574,3823.0,3822.9,4.15444902]
[1717392539511,3.16274,3823.0,3822.9,4.15444902]
[1717392539888,3.16274,3823.0,3822.9,4.0476]
[1717392540087,2.61574,3823.0,3822.9,4.0476]
[1717392540304,3.16274,3823.0,3822.9,4.15444902]
[1717392540692,2.61574,3823.0,3822.9,4.15444902]
[1717392541011,3.16274,3823.0,3822.9,4.15444902]
[1717392543273,2.61574,3823.0,3822.9,4.15444902]
[1717392543583,3.16274,3823.0,3822.9,4.15444902]
[1717392546184,2.61574,3823.0,3822.9,4.15444902]
[1717392546384,3.16274,3823.0,3822.9,4.15444902]
[1717392553216,3.16274,3823.0,3822.9,0.10684902]
[1717392553419,7.84464,3823.0,3822.8,5.2318]
[1717392553583,3.784464,3822.9,3822.8,5.2318]
[1717392554531,4.334464,3822.9,3822.8,5.2318]
[1717392559231,4.334464,3822.9,3822.8,5.32781447]
[1717392572017,4.881464,3822.9,3822.8,5.32781447]
[1717392580970,3.547,3822.9,3822.8,5.32781447]
[1717392592377,3.0,3822.9,3822.8,5.32781447]
[1717392592578,3.547,3822.9,3822.8,5.32781447]
[1717392595468,3.0,3822.9,3822.8,9.69821447]
[1717392595694,0.547,3822.9,3822.8,9.69821447]
[1717392600776,2.61574,3823.0,3822.8,9.69821447]
[1717392601292,0.547,3822.9,3822.8,9.69821447]
[1717392601617,2.61574,3823.0,3822.8,9.69821447]
[1717392601844,2.61574,3823.0,3822.9,4.1542]
[1717392602678,2.61547,3823.4,3822.9,4.1542]
[1717392603181,0.547,3823.2,3822.9,4.1542]
[1717392604793,2.61547,3823.4,3822.9,4.1542]
[1717392604989,2.61547,3823.4,3823.0,3.9835]
[1717392605639,0.547,3823.3,3823.0,3.9835]
[1717392606056,2.61547,3823.4,3823.0,3.9835]
[1717392606254,3.16247,3823.4,3823.0,3.9835]
[1717392606404,2.61547,3823.4,3823.0,3.9835]
[1717392606596,3.16247,3823.4,3823.2,4.1873]
[1717392606820,2.6152,3823.8,3823.2,4.1873]
[1717392607513,3.1622,3823.8,3823.2,4.1873]
[1717392610468,2.61493,3824.2,3823.3,0.0523054]
[1717392610643,2.61493,3824.2,3823.4,4.2259]
[1717392610814,2.61493,3824.2,3823.6,4.2259]
[1717392612350,3.16193,3824.2,3823.7,5.2305]
[1717392612558,3.16193,3824.2,3823.8,4.3386]
[1717392612758,3.16193,3824.2,3823.9,5.2303]
[1717392618551,3.16193,3824.2,3824.0,0.09531776]
[1717392618863,2.61464,3824.7,3824.1,4.3167]
[1717392619365,2.61464,3824.7,3824.3,4.3777]
[1717392619817,2.61464,3824.7,3824.4,0.09502014]
[1717392621538,3.16164,3824.7,3824.4,0.09502014]
[1717392621746,0.547,3824.5,3824.4,0.09502014]
[1717392621970,3.16164,3824.7,3824.4,0.09502014]
[1717392623094,2.61464,3824.7,3824.4,0.09502014]
[1717392624150,0.547,3824.6,3824.4,0.09502014]
[1717392628293,2.61464,3824.7,3824.4,0.09502014]
[1717392629896,3.16134,3825.1,3824.4,0.09502014]
[1717392630075,0.547,3824.9,3824.4,0.09502014]
[1717392631207,2.61434,3825.1,3824.5,4.2217]
[1717392631563,3.16134,3825.1,3824.6,0.09455525]
[1717392633397,0.547,3824.9,3824.6,0.09455525]
[1717392633899,3.16134,3825.1,3824.6,0.09455525]
[1717392634496,0.547,3824.9,3824.6,0.09455525]
[1717392635163,2.61434,3825.1,3824.6,0.09455525]
[1717392635164,3.16134,3825.1,3824.6,0.09455525]
[1717392635696,0.547,3824.9,3824.6,0.09455525]
[1717392636296,3.16134,3825.1,3824.6,0.09455525]
[1717392636774,0.547,3824.9,3824.6,0.09455525]
[1717392639975,3.0,3825.8,3824.6,0.09455525]
[1717392640176,0.547,3824.7,3824.6,0.09455525]
[1717392640433,2.61451,3824.8,3823.9,5.2303]
[1717392640724,0.547,3824.5,3824.0,4.2161]
[1717392641019,2.61482,3824.4,3824.1,5.23]
[1717392641205,0.547,3824.3,3824.1,5.23]
[1717392641680,2.61482,3824.4,3824.1,5.23]
[1717392642115,2.61453,3824.8,3824.1,5.23]
[1717392642309,2.61453,3824.8,3824.2,4.2859]
[1717392643224,2.61425,3825.2,3824.4,4.2859]
[1717392644612,3.0,3825.8,3824.7,0.547]
[1717392644613,2.61396,3825.7,3824.7,0.547]
[1717392644795,2.61396,3825.7,3824.8,4.1575]
[1717392645494,2.61396,3825.7,3824.9,5.2289]
[1717392645693,0.547,3825.6,3824.9,5.2289]
[1717392648933,2.61396,3825.7,3825.0,4.2293]
[1717392649630,2.61396,3825.7,3825.2,4.0424]
[1717392649838,3.16096,3825.7,3825.2,4.0424]
[1717392650054,3.16096,3825.7,3825.3,0.08802131]
[1717392656383,0.547,3825.4,3825.3,0.08802131]
[1717392656588,3.16116,3825.4,3824.9,9.3927]
[1717392656789,0.547,3825.1,3825.0,0.08788453]
[1717392658705,0.547,3825.3,3825.0,0.08788453]
[1717392659098,3.16116,3825.4,3825.1,4.3509]
[1717392659531,3.16116,3825.4,3825.2,0.0820621]
[1717392659744,0.547,3825.3,3825.2,0.0820621]
[1717392660048,0.547,3825.3,3824.9,5.2289]
[1717392660049,2.61425,3825.2,3824.9,5.2289]
[1717392660343,0.547,3825.0,3824.9,5.2289]
[1717392662517,0.863125,3825.0,3824.9,5.2289]
[1717392663423,0.547,3825.0,3824.9,5.2289]
[1717392664711,0.547,3825.0,3824.9,5.31108842]
[1717392668219,4.6006,3825.0,3824.9,5.31108842]
[1717392669438,5.1506,3825.0,3824.9,5.31108842]
[1717392670670,4.0536,3825.0,3824.9,5.31108842]
[1717392670890,4.6006,3825.0,3824.9,5.31108842]
[1717392671180,5.267385,3825.0,3824.9,5.31108842]
[1717392671954,1.213785,3825.0,3824.9,5.31108842]
[1717392673135,4.0858,3824.3,3822.7,11.2756]
[1717392673461,0.547,3823.1,3822.7,3.9956]
[1717392674061,0.547,3823.1,3822.8,5.2316]
[1717392675825,2.61561,3823.2,3822.8,5.2316]
[1717392680870,2.61561,3823.2,3822.9,0.07768633]
[1717392684283,2.877171,3823.2,3822.9,0.07768633]
[1717392684485,2.61561,3823.2,3822.9,0.07768633]
[1717392688701,2.61541,3823.5,3822.9,0.07768633]
[1717392688872,4.312,3824.0,3822.9,0.07768633]
[1717392688873,2.61569,3823.1,3822.9,0.07768633]
[1717392690159,2.61569,3823.1,3822.8,5.2316]
[1717392693195,2.61581,3822.9,3822.8,5.2316]
[1717392693408,6.57016,3822.9,3822.8,5.2316]
[1717392693572,2.61636,3822.1,3822.0,7.28]
[1717392693782,2.61636,3822.1,3822.0,0.07836152]
[1717392693963,2.61636,3822.1,3821.5,4.0747]
[1717392694164,2.61636,3822.1,3821.6,0.07845668]
[1717392694605,2.61606,3822.6,3821.6,0.07845668]
[1717392695018,2.61629,3822.2,3821.6,0.07845668]
[1717392696680,2.61629,3822.2,3821.2,4.2935]
[1717392696899,2.61629,3822.2,3821.7,0.07843289]
[1717392697095,2.61629,3822.2,3821.2,4.2935]
[1717392697301,2.61629,3822.2,3821.8,0.07898043]
[1717392697528,2.61629,3822.2,3821.2,4.2935]
[1717392697735,2.61629,3822.2,3821.9,0.07895664]
[1717392698030,2.61629,3822.2,3821.2,4.2935]
[1717392698551,2.61629,3822.2,3821.3,0.07915136]